bitfinex/quotes_SOLUSD_20251117
["timestamp","ask_amount","ask_price","bid_price","bid_amount"]
[1763359267444,0.67,141.0,140.97,0.66]
[1763359267778,0.67,141.0,140.97,2.46943379]
[1763359268274,0.67,141.0,140.96,1.80943379]
[1763359268452,2.47943379,141.0,140.93,43.92131175]
[1763359268653,1.80943379,140.99,140.94,1.80943379]
[1763359268848,2.47943379,140.99,140.94,1.80943379]
[1763359269046,2.47943379,140.98,140.93,2.46943379]
[1763359269474,0.67,140.97,140.93,2.46943379]
[1763359269772,0.67,140.98,140.94,2.46943379]
[1763359270752,0.67,140.98,140.95,2.46943379]
[1763359271858,2.00943379,141.01,140.97,1.80943379]
[1763359272170,2.67943379,141.01,140.97,1.80943379]
[1763359272350,0.67,141.0,140.97,1.80943379]
[1763359272669,0.67,141.0,140.96,0.66]
[1763359272866,0.67,141.0,140.96,2.46943379]
[1763359273070,0.67,141.0,140.95,1.80943379]
[1763359273243,1.80943379,140.99,140.94,2.46943379]
[1763359273758,0.67,140.98,140.94,2.46943379]
[1763359274166,0.67,140.98,140.95,0.66]
[1763359274468,0.67,140.98,140.93,2.46943379]
[1763359274677,0.67,140.98,140.94,0.66]
[1763359275176,0.67,140.98,140.94,2.46943379]
[1763359277069,0.67,140.98,140.95,0.71]
[1763359277276,0.67,140.98,140.95,1.80943379]
[1763359279172,0.67,140.98,140.93,0.71]
[1763359279361,0.67,140.98,140.95,1.80943379]
[1763359279772,0.67,140.98,140.94,1.80943379]
[1763359280155,0.67,140.98,140.94,2.51943379]
[1763359280463,0.67,140.98,140.95,1.80943379]
[1763359282858,0.67,140.98,140.94,1.80943379]
[1763359285502,1.80943379,140.97,140.92,1.80943379]
[1763359285772,0.66,140.96,140.92,1.80943379]
[1763359287055,2.46943379,140.96,140.91,1.80943379]
[1763359287257,22.6512,140.95,140.91,1.80943379]
[1763359287457,25.12063379,140.95,140.9,2.51943379]
[1763359287657,0.66,140.94,140.91,1.80943379]
[1763359287853,0.66,140.94,140.86,53.77639552]
[1763359288074,0.66,140.94,140.9,1.80943379]
[1763359288476,0.66,140.94,140.9,2.51943379]
[1763359289256,0.66,140.94,140.9,1.80943379]
[1763359291088,0.66,140.94,140.91,1.80943379]
[1763359291291,22.6512,140.95,140.92,1.80943379]
[1763359292971,105.56,140.98,140.94,1.80943379]
[1763359293486,0.66,140.97,140.94,2.48943379]
[1763359293682,0.66,140.97,140.95,1.80943379]
[1763359294682,0.66,140.97,140.93,1.80943379]
[1763359295078,1.80943379,140.96,140.91,1.80943379]
[1763359295471,0.66,140.95,140.91,1.80943379]
[1763359296199,0.66,140.95,140.92,1.80943379]
[1763359298792,104.9,140.98,140.92,1.80943379]
[1763359299087,105.56,140.97,140.94,1.80943379]
[1763359299508,104.9,140.97,140.94,1.80943379]
[1763359299681,0.66,140.96,140.94,1.80943379]
[1763359300788,0.66,140.96,140.94,2.82593431]
[1763359302275,0.66,140.96,140.93,3.50593431]
[1763359304003,0.66,140.96,140.94,2.82593431]
[1763359304400,0.66,140.96,140.92,0.68]
[1763359304702,0.66,140.96,140.93,2.82593431]
[1763359305396,104.9,140.97,140.94,2.82593431]
[1763359305696,2.82593431,140.99,140.95,2.82593431]
[1763359305697,0.66,140.99,140.95,2.82593431]
[1763359305887,0.66,140.98,140.95,3.50593431]
[1763359306697,0.66,140.98,140.95,2.82593431]
[1763359311080,0.66,140.98,140.95,3.50593431]
[1763359311499,105.56,141.0,140.97,2.82593431]
[1763359312011,0.66,140.99,140.97,2.82593431]
[1763359312177,0.66,140.99,140.96,2.82593431]
[1763359312379,0.66,140.99,140.95,2.82593431]
[1763359314602,0.66,140.99,140.97,2.82593431]
[1763359314789,105.56,141.0,140.97,2.82593431]
[1763359314988,105.56,141.0,140.98,2.82593431]
[1763359315196,105.56,141.0,140.97,3.50593431]
[1763359316190,105.56,141.0,140.97,2.82593431]
[1763359317019,104.9,141.0,140.97,2.82593431]
[1763359317184,105.56,141.0,140.97,2.82593431]
[1763359317912,0.2,141.01,140.99,2.82593431]
[1763359318097,0.2,141.01,141.0,2.82593431]
[1763359318690,0.2,141.01,140.99,2.82593431]
[1763359319202,0.2,141.01,141.0,2.82593431]
[1763359319506,0.2,141.01,141.0,3.50593431]
[1763359319998,0.2,141.01,141.0,2.82593431]
[1763359321398,0.2,141.01,141.0,3.51593431]
[1763359322110,0.2,141.01,140.99,5.66855947]
[1763359322398,0.2,141.01,140.99,2.82593431]
[1763359322795,0.2,141.01,140.99,3.51593431]
[1763359323495,0.86,141.01,140.98,5.85186862]
[1763359323690,0.86,141.01,140.98,2.82593431]
[1763359323892,0.86,141.01,140.98,3.51593431]
[1763359324792,0.66,141.0,140.98,2.82593431]
[1763359326116,0.2,141.01,140.98,3.51593431]
[1763359326413,0.86,141.01,140.98,2.82593431]
[1763359327615,0.2,141.01,140.98,2.82593431]
[1763359327818,0.66,141.0,140.98,2.82593431]
[1763359328213,0.66,141.0,140.97,2.82593431]
[1763359328418,0.66,141.0,140.96,2.82593431]
[1763359328914,0.66,141.0,140.97,2.82593431]
[1763359331121,0.66,141.0,140.98,2.82593431]
[1763359332618,0.66,141.0,140.95,3.02593431]
[1763359332820,3.48593431,141.0,140.95,2.82593431]
[1763359333224,0.66,140.99,140.96,2.82593431]
[1763359333423,0.66,141.0,140.97,0.88138776]
[1763359333615,0.66,141.0,140.95,0.69]
[1763359333811,0.66,141.0,140.96,2.82593431]
[1763359334221,0.66,141.0,140.97,2.82593431]
[1763359335017,0.66,141.0,140.96,0.69]
[1763359335214,0.66,141.0,140.97,2.82593431]
[1763359336122,105.1,141.01,140.98,2.82593431]
[1763359336322,0.66,141.0,140.98,2.82593431]
[1763359336906,105.1,141.01,140.98,3.50593431]
[1763359337622,105.8,141.01,140.98,3.50593431]
[1763359340334,105.1,141.01,140.98,3.50593431]
[1763359340512,105.8,141.01,140.98,3.50593431]
[1763359341337,105.1,141.01,140.99,3.50593431]
[1763359341633,0.2,141.01,141.0,3.50593431]
[1763359341834,0.2,141.01,141.0,2.82593431]
[1763359342429,0.2,141.01,141.0,3.50593431]
[1763359353827,0.2,141.02,141.0,18.96311947]
[1763359354048,0.2,141.02,141.01,26.17713431]
[1763359354436,0.2,141.02,141.01,29.01915356]
[1763359355241,0.2,141.02,141.01,2.84201925]
[1763359355457,0.2,141.02,141.01,5.66795356]
[1763359355751,0.86,141.02,141.01,2.82593431]
[1763359355955,0.86,141.02,140.99,2.84262516]
[1763359356247,0.86,141.02,141.01,2.82593431]
[1763359356442,0.2,141.02,141.01,2.82593431]
[1763359360347,0.2,141.02,141.01,3.52593431]
[1763359360539,0.2,141.02,141.01,2.82593431]
[1763359361656,0.86,141.02,141.0,2.84262516]
[1763359361861,0.86,141.02,141.01,2.82593431]
[1763359362157,0.2,141.02,141.01,2.82593431]
[1763359362458,0.86,141.02,141.01,2.82593431]
[1763359362757,0.86,141.02,141.01,1.80672134]
[1763359363884,0.86,141.02,140.99,3.54262516]
[1763359364037,0.66,141.01,140.99,2.84262516]
[1763359364237,0.86,141.02,141.0,1.80672134]
[1763359364438,0.86,141.02,141.01,1.80672134]
[1763359365255,0.86,141.02,141.0,1.80672134]
[1763359370073,0.86,141.02,141.01,1.80672134]
[1763359373862,0.2,141.02,141.01,1.80672134]
[1763359374248,0.86,141.02,141.01,1.80672134]
[1763359376964,0.2,141.02,141.01,1.80672134]
[1763359377356,0.86,141.02,141.01,1.80672134]
[1763359377691,0.2,141.02,141.01,1.80672134]
[1763359378179,0.86,141.02,141.01,1.80672134]
[1763359380086,0.2,141.02,141.01,1.80672134]
[1763359380460,0.2,141.02,141.01,2.50672134]
[1763359380670,0.2,141.02,141.01,5.34894253]
[1763359381184,0.2,141.02,141.01,2.50672134]
[1763359381781,0.88,141.02,141.0,25.49342119]
[1763359382106,0.88,141.02,141.01,1.80672134]
[1763359382783,0.2,141.02,141.01,1.80672134]
[1763359383385,0.88,141.02,141.01,1.80672134]
[1763359385987,0.88,141.02,140.99,1.80672134]
[1763359386167,0.68,141.01,140.95,0.72]
[1763359386373,0.68,141.01,140.96,2.84323133]
[1763359386571,1.80672134,141.0,140.96,2.84323133]
[1763359386768,1.80672134,141.0,140.95,1.80672134]
[1763359386973,0.68,140.99,140.95,1.80672134]
[1763359387166,0.68,140.99,140.96,1.80672134]
[1763359390591,0.68,140.99,140.97,1.80672134]
[1763359391388,0.68,140.99,140.96,1.80672134]
[1763359391795,0.68,140.99,140.95,1.80672134]
[1763359392395,2.48672134,140.99,140.94,1.80672134]
[1763359392800,0.68,140.98,140.94,1.80672134]
[1763359393787,0.68,140.98,140.95,1.80672134]
[1763359396490,104.9,141.01,140.97,1.80672134]
[1763359396695,0.68,140.99,140.96,1.80672134]
[1763359402005,0.68,140.99,140.95,0.67]
[1763359402192,0.68,140.99,140.96,1.80672134]
[1763359402905,0.68,140.99,140.97,1.80672134]
[1763359404630,104.9,141.0,140.98,1.80672134]
[1763359404785,104.9,141.0,140.99,1.80672134]
[1763359404986,0.89,141.02,140.99,1.80672134]
[1763359405508,0.69,141.01,140.99,1.80672134]
[1763359408308,0.69,141.01,140.98,0.67]
[1763359408515,0.69,141.01,140.99,1.80672134]
[1763359409712,0.69,141.01,140.98,1.80672134]
[1763359410713,0.69,141.01,140.96,21.32271935]
[1763359411013,1.80672134,141.0,140.96,1.80672134]
[1763359411509,0.69,140.99,140.96,1.80672134]
[1763359416805,104.9,141.01,140.97,2.46672134]
[1763359417004,0.69,141.0,140.97,1.80672134]
[1763359418003,0.69,141.0,140.96,1.80672134]
[1763359419899,0.69,141.0,140.95,0.66]
[1763359420224,0.69,141.0,140.96,1.80672134]
[1763359423301,0.69,141.0,140.97,1.80672134]
[1763359424913,0.69,141.0,140.97,2.82480848]
[1763359428510,104.9,141.01,140.99,2.82480848]
[1763359428917,105.59,141.01,140.99,2.82480848]
[1763359429402,0.69,141.0,140.99,2.82480848]
[1763359433009,0.69,141.0,140.98,2.82480848]
[1763359435634,0.69,141.0,140.98,3.48480848]
[1763359436831,0.2,141.02,140.99,3.48480848]
[1763359437011,0.89,141.02,140.99,3.48480848]
[1763359437214,0.89,141.02,140.99,2.82480848]
[1763359437417,0.69,141.01,140.99,2.82480848]
[1763359437837,0.69,141.01,140.99,3.48480848]
[1763359438024,0.89,141.02,140.99,3.48480848]
[1763359439535,0.89,141.02,141.0,2.82480848]
[1763359441130,0.89,141.02,140.99,3.48480848]
[1763359441435,0.66,141.01,140.99,3.51480848]
[1763359441815,0.66,141.01,140.99,2.82480848]
[1763359442010,0.66,141.01,140.99,3.51480848]
[1763359442433,0.86,141.02,140.99,3.51480848]
[1763359443531,0.66,141.01,140.99,2.82480848]
[1763359444552,0.2,141.02,141.0,2.82480848]
[1763359444719,0.86,141.02,141.0,2.82480848]
[1763359444919,0.86,141.02,140.99,0.69]
[1763359445146,0.86,141.02,141.0,2.82480848]
[1763359446959,0.2,141.02,141.01,2.82480848]
[1763359447458,0.86,141.02,141.01,2.82480848]
[1763359448245,0.86,141.02,140.99,0.69]
[1763359448459,0.86,141.02,141.01,2.82480848]
[1763359449451,0.2,141.02,141.01,2.82480848]
[1763359449825,0.86,141.02,141.01,2.82480848]
[1763359451843,0.2,141.02,141.01,2.82480848]
[1763359452339,0.2,141.02,141.01,3.51480848]
[1763359453755,0.2,141.02,141.01,2.82480848]
[1763359457830,0.2,141.02,141.0,6.53354009]
[1763359458162,0.2,141.02,140.97,2.82480848]
[1763359458163,3.70480848,141.02,140.97,2.82480848]
[1763359458331,3.50480848,141.01,140.97,2.82480848]
[1763359458529,3.50480848,141.01,140.96,2.82480848]
[1763359458730,0.68,141.0,140.96,2.82480848]
[1763359459237,3.50480848,141.0,140.95,2.82480848]
[1763359459533,2.82480848,140.98,140.93,2.82480848]
[1763359459757,3.50480848,140.97,140.92,2.82480848]
[1763359460057,3.50480848,140.97,140.9,4.22480848]
[1763359460058,2.82480848,140.96,140.91,2.82480848]
[1763359460266,3.50480848,140.96,140.91,2.82480848]
[1763359460547,0.68,140.95,140.91,2.82480848]
[1763359460746,0.68,140.95,140.91,3.54480848]
[1763359461259,0.68,140.95,140.92,2.82480848]
[1763359462535,3.50480848,140.95,140.9,6.32961696]
[1763359462734,3.50480848,140.95,140.9,2.82480848]
[1763359462955,0.68,140.94,140.9,2.82480848]
[1763359463739,0.68,140.94,140.91,2.82480848]
[1763359464931,0.68,140.94,140.89,20.77053934]
[1763359465147,2.82480848,140.92,140.89,17.06]
[1763359465348,2.82480848,140.91,140.89,17.06]
[1763359465551,3.50480848,140.91,140.89,17.06]
[1763359465858,3.50480848,140.9,140.86,2.92480848]
[1763359466364,2.82480848,140.88,140.86,0.1]
[1763359466565,0.68,140.89,140.86,0.1]
[1763359466863,3.50480848,140.88,140.86,0.1]
[1763359467361,3.50480848,140.87,140.86,0.1]
[1763359472252,35.94483617,140.87,140.86,0.1]
[1763359472458,38.86964465,140.87,140.86,0.1]
[1763359475036,35.94483617,140.87,140.86,0.1]
[1763359476263,26.15600848,140.87,140.86,0.1]
[1763359479704,22.6512,140.87,140.86,0.1]
[1763359479842,3.53480848,140.89,140.86,0.1]
[1763359480045,0.71,140.88,140.86,0.1]
[1763359482762,2.82480848,140.9,140.87,0.72]
[1763359482985,104.9,140.9,140.88,2.82480848]
[1763359483491,3.53480848,140.94,140.89,3.54480848]
[1763359483682,3.53480848,140.94,140.9,2.82480848]
[1763359483858,0.71,140.93,140.9,2.82480848]
[1763359484383,0.71,140.93,140.89,0.72]
[1763359484671,3.53480848,140.93,140.89,0.72]
[1763359485546,0.71,140.92,140.89,0.72]
[1763359488269,2.52005509,140.93,140.89,0.72]
[1763359488882,0.71,140.93,140.89,2.53005509]
[1763359489884,1.81005509,140.94,140.89,2.53005509]
[1763359490069,0.71,140.93,140.89,2.53005509]
[1763359499698,107.42005509,140.95,140.9,2.53005509]
[1763359499873,104.9,140.95,140.91,1.81005509]
[1763359500072,104.9,140.95,140.91,2.53005509]
[1763359500273,105.61,140.95,140.92,0.72]
[1763359500704,0.68,140.94,140.87,44.66756783]
[1763359500988,0.68,140.94,140.88,2.49005509]
[1763359501192,2.49005509,140.94,140.89,1.81005509]
[1763359501563,0.68,140.93,140.89,1.81005509]
[1763359501789,0.68,140.93,140.89,2.49005509]
[1763359502191,0.68,140.93,140.9,1.81005509]
[1763359503299,0.68,140.93,140.89,2.49005509]
[1763359505486,106.71005509,140.95,140.9,0.68]
[1763359505689,105.58,140.95,140.91,1.81005509]
[1763359505902,104.9,140.95,140.92,2.49005509]
[1763359506082,23.3312,140.96,140.93,1.81005509]
[1763359506500,23.3312,140.96,140.93,2.49005509]
[1763359506695,23.3312,140.96,140.93,0.68]
[1763359507012,23.3312,140.96,140.92,2.49005509]
[1763359508295,0.68,140.95,140.92,2.49005509]
[1763359508611,0.68,140.95,140.92,0.68]
[1763359509813,0.68,140.95,140.92,2.49005509]
[1763359510117,23.3312,140.96,140.92,2.49005509]
[1763359510310,0.68,140.95,140.92,0.68]
[1763359510487,0.68,140.95,140.92,2.49005509]
[1763359512616,0.68,140.95,140.91,1.81005509]
[1763359514022,2.49005509,140.95,140.89,22.6512]
[1763359514221,106.71005509,140.94,140.89,2.49005509]
[1763359514423,0.68,140.93,140.89,2.49005509]
[1763359514717,0.68,140.93,140.9,0.68]
[1763359515311,0.68,140.93,140.89,1.81005509]
[1763359515493,0.68,140.93,140.89,2.49005509]
[1763359515895,0.68,140.93,140.89,0.68]
[1763359516115,0.68,140.93,140.89,2.49005509]
[1763359516314,0.68,140.93,140.89,1.81005509]
[1763359516932,0.68,140.93,140.89,2.51005509]
[1763359517219,1.81005509,140.92,140.87,1.81005509]
[1763359517420,1.81005509,140.92,140.87,24.46125509]
[1763359517622,0.7,140.91,140.87,24.46125509]
[1763359517792,1.81005509,140.9,140.86,0.1]
[1763359518207,0.7,140.89,140.86,0.8]
[1763359518403,0.7,140.89,140.86,0.1]
[1763359519524,2.51005509,140.89,140.86,0.1]
[1763359519895,0.7,140.89,140.86,0.1]
[1763359520091,1.81005509,140.9,140.86,0.1]
[1763359520300,0.7,140.88,140.86,0.1]
[1763359521037,127.5512,140.92,140.87,1.81005509]
[1763359521207,21.34395788,140.94,140.9,1.81005509]
[1763359521523,0.7,140.93,140.9,1.81005509]
[1763359524322,23.3512,140.95,140.91,1.81005509]
[1763359524527,23.3512,140.95,140.91,2.51005509]
[1763359524731,0.7,140.94,140.91,1.81005509]
[1763359527006,0.7,140.95,140.92,1.81005509]
[1763359527345,127.5512,140.98,140.94,1.81005509]
[1763359527346,105.6,140.98,140.94,1.81005509]
[1763359527515,105.6,140.98,140.95,1.81005509]
[1763359528831,0.7,140.97,140.94,2.51005509]
[1763359529046,0.7,140.97,140.94,1.81005509]
[1763359529223,0.7,140.97,140.94,2.51005509]
[1763359533956,105.59,140.98,140.94,2.51005509]
[1763359534132,105.59,140.98,140.95,1.81005509]
[1763359534342,105.59,140.98,140.95,2.46005509]
[1763359534872,0.69,141.01,140.97,1.81005509]
[1763359535038,0.69,141.01,140.96,0.65]
[1763359535241,0.69,141.01,140.97,1.81005509]
[1763359535663,0.69,141.01,140.97,2.46005509]
[1763359536843,2.50005509,141.01,140.97,2.46005509]
[1763359537152,2.50005509,141.01,140.97,1.81005509]
[1763359537354,0.69,141.0,140.97,2.46005509]
[1763359540545,0.69,141.0,140.94,7.24022036]
[1763359540736,1.81005509,140.98,140.92,23.3012]
[1763359541065,1.81005509,140.98,140.94,1.81005509]
[1763359541263,0.69,140.97,140.94,1.81005509]
[1763359541837,0.69,140.97,140.93,2.46005509]
[1763359542453,0.69,140.97,140.93,1.81005509]
[1763359542656,0.69,140.97,140.93,2.46005509]
[1763359542965,0.69,140.97,140.92,22.6512]
[1763359543151,0.69,140.97,140.93,2.46005509]
[1763359543556,2.50005509,140.97,140.92,24.46125509]
[1763359543752,0.69,140.97,140.91,1.81005509]
[1763359544067,1.81005509,140.95,140.9,2.46005509]
[1763359544450,0.69,140.94,140.9,2.46005509]
[1763359544853,0.69,140.94,140.9,0.65]
[1763359545181,2.50005509,140.94,140.88,0.65]
[1763359545379,2.50005509,140.94,140.89,2.46005509]
[1763359545584,0.69,140.93,140.89,2.46005509]
[1763359546776,0.69,140.93,140.89,3.47803893]
[1763359547872,0.69,140.93,140.89,2.82803893]
[1763359548073,104.9,140.94,140.91,2.82803893]
[1763359548371,0.69,140.93,140.9,3.47803893]
[1763359549177,0.69,140.93,140.91,2.82803893]
[1763359549475,0.69,140.93,140.9,3.47803893]
[1763359550659,105.59,140.94,140.89,22.6512]
[1763359550856,0.69,140.93,140.89,2.82803893]
[1763359551057,3.51803893,140.93,140.88,2.82803893]
[1763359551272,3.51803893,140.92,140.88,2.82803893]
[1763359551673,0.69,140.91,140.88,2.82803893]
[1763359551872,0.69,140.91,140.88,3.47803893]
[1763359553479,0.69,140.91,140.88,0.65]
[1763359553682,0.69,140.91,140.88,2.82803893]
[1763359553978,0.69,140.91,140.87,23.3012]
[1763359554159,0.69,140.91,140.88,2.82803893]
[1763359555179,0.69,140.91,140.87,22.6512]
[1763359555367,0.69,140.91,140.87,25.47923893]
[1763359555684,0.69,140.91,140.87,26.12923893]
[1763359555867,0.69,140.91,140.87,23.3012]
[1763359556181,0.69,140.91,140.87,26.12923893]
[1763359556683,0.69,140.91,140.88,2.82803893]
[1763359557378,0.69,140.91,140.88,3.47803893]
[1763359557684,0.69,140.91,140.89,2.82803893]
[1763359557858,0.69,140.91,140.88,2.82803893]
[1763359558281,0.69,140.91,140.88,3.47803893]
[1763359558591,0.69,140.91,140.88,2.82803893]
[1763359559463,3.51803893,140.91,140.86,0.1]
[1763359559668,0.69,140.91,140.87,2.82803893]
[1763359559856,0.69,140.9,140.87,2.82803893]
[1763359560479,107.72803893,140.92,140.87,2.82803893]
[1763359560654,0.7,140.91,140.87,22.6512]
[1763359561051,0.7,140.91,140.87,3.50803893]
[1763359561276,0.7,140.91,140.88,2.82803893]
[1763359561657,105.6,140.92,140.89,2.82803893]
[1763359561862,0.7,140.91,140.88,3.50803893]
[1763359562380,104.9,140.92,140.88,2.82803893]
[1763359562696,105.6,140.92,140.89,3.50803893]
[1763359563766,0.7,140.92,140.88,2.82803893]
[1763359564085,0.7,140.92,140.88,3.50803893]
[1763359564290,0.7,140.92,140.89,3.50803893]
[1763359568192,127.5512,140.95,140.86,0.1]
[1763359568193,3.52803893,140.94,140.9,3.50803893]
[1763359568400,0.7,140.94,140.9,3.50803893]
[1763359568698,0.7,140.94,140.91,3.50803893]
[1763359568899,0.7,140.94,140.9,2.82803893]
[1763359569273,0.7,140.94,140.9,3.50803893]
[1763359570300,107.72803893,140.95,140.91,3.50803893]
[1763359570301,105.6,140.95,140.91,3.50803893]
[1763359570495,108.42803893,140.95,140.91,3.50803893]
[1763359570807,104.9,140.95,140.92,3.50803893]
[1763359571010,0.7,140.98,140.94,2.82803893]
[1763359571297,0.7,140.98,140.95,2.82803893]
[1763359571890,0.7,140.98,140.93,22.6512]
[1763359572214,3.52803893,140.98,140.93,26.15923893]
[1763359572688,0.7,140.97,140.93,26.15923893]
[1763359573008,0.7,140.97,140.94,2.82803893]
[1763359574802,3.52803893,140.97,140.93,2.82803893]
[1763359575215,0.7,140.96,140.93,3.50803893]
[1763359576395,0.7,140.96,140.92,0.68]
[1763359576590,0.7,140.96,140.93,2.82803893]
[1763359576791,0.7,140.96,140.94,2.82803893]
[1763359577099,0.71,140.98,140.94,2.82803893]
[1763359577290,0.71,140.98,140.94,3.49803893]
[1763359577691,0.71,140.98,140.95,2.82803893]
[1763359578089,0.71,140.98,140.94,3.49803893]
[1763359578606,0.71,140.98,140.95,2.82803893]
[1763359578801,0.71,140.98,140.95,3.49803893]
[1763359579110,3.53803893,140.98,140.93,22.6512]
[1763359579298,0.71,140.98,140.94,3.49803893]
[1763359579493,0.71,140.97,140.94,3.49803893]
[1763359579884,0.71,140.97,140.94,0.67]
[1763359580210,0.71,140.97,140.94,3.49803893]
[1763359580509,104.9,141.01,140.94,3.49803893]
[1763359580510,0.71,140.98,140.94,0.67]
[1763359580688,0.71,140.98,140.95,2.82803893]
[1763359581008,0.71,140.98,140.94,3.49803893]
[1763359581211,104.9,141.01,140.94,0.67]
[1763359581518,0.2,141.02,140.99,2.82803893]
[1763359581707,0.91,141.02,140.99,2.82803893]
[1763359582005,0.91,141.02,140.98,2.82803893]
[1763359582201,0.71,141.01,140.98,3.49803893]
[1763359582581,0.71,141.01,140.98,2.82803893]
[1763359583191,0.71,141.01,140.98,3.49803893]
[1763359585196,0.71,141.01,140.98,2.82803893]
[1763359586520,0.71,141.01,140.99,2.82803893]
[1763359592297,0.2,141.02,141.0,3.54803893]
[1763359592494,0.2,141.02,141.01,2.82803893]
[1763359592698,0.2,141.02,141.01,3.54803893]
[1763359594100,0.2,141.02,141.01,2.82803893]
[1763359596303,0.89,141.02,140.99,22.6512]
[1763359596614,0.89,141.02,141.0,2.82803893]
[1763359596924,0.69,141.01,140.98,2.82803893]
[1763359597114,0.89,141.02,140.99,2.82803893]
[1763359598023,0.89,141.02,141.0,2.82803893]
[1763359599222,0.2,141.02,140.99,2.82803893]
[1763359599430,0.69,141.01,140.99,2.82803893]
[1763359599605,0.2,141.02,141.0,3.54803893]
[1763359599805,0.2,141.02,141.0,2.82803893]
[1763359600006,0.89,141.02,140.99,2.82803893]
[1763359601322,0.69,141.01,140.99,2.82803893]
[1763359601526,0.69,141.01,140.98,22.04219271]
[1763359601829,0.69,141.01,140.99,2.82803893]
[1763359603324,0.69,141.01,140.97,22.6512]
[1763359603511,0.69,141.01,140.98,2.82803893]
[1763359604930,3.51803893,141.01,140.96,21.5978264]
[1763359605225,3.51803893,141.01,140.96,2.82803893]
[1763359605519,0.69,141.0,140.96,3.54803893]
[1763359605725,0.69,141.0,140.97,2.82803893]
[1763359606926,0.69,141.0,140.97,1.80784565]
[1763359607122,0.69,141.0,140.96,22.71776179]
[1763359607429,0.69,141.0,140.96,23.43776179]
[1763359608318,0.69,141.0,140.97,1.80784565]
[1763359609446,0.69,141.0,140.98,1.80784565]
[1763359609813,0.69,141.0,140.96,20.90991614]
[1763359610016,0.69,141.0,140.94,22.6512]
[1763359610017,0.69,141.0,140.98,1.80784565]
[1763359611334,0.2,141.02,140.99,2.52784565]
[1763359611534,0.2,141.02,140.99,1.80784565]
[1763359611738,0.69,141.01,140.99,1.80784565]
[1763359612237,0.89,141.02,140.99,1.80784565]
[1763359612925,0.89,141.02,140.99,2.52784565]
[1763359613125,0.89,141.02,141.0,1.80784565]
[1763359614008,0.69,141.01,140.98,22.6512]
[1763359614212,0.89,141.02,140.99,1.80784565]
[1763359614742,0.89,141.02,140.99,2.52784565]
[1763359616346,0.89,141.02,140.99,0.72]
[1763359616641,0.89,141.02,140.99,2.52784565]
[1763359616935,0.89,141.02,140.99,1.80784565]
[1763359617537,0.89,141.02,140.99,2.52784565]
[1763359617732,0.2,141.02,140.99,1.80784565]
[1763359618047,0.89,141.02,141.0,1.80784565]
[1763359619347,0.89,141.02,140.98,23.3712]
[1763359619531,0.89,141.02,141.0,1.80784565]
[1763359620245,0.2,141.02,141.01,2.52784565]
[1763359620644,0.2,141.02,141.01,1.80784565]
[1763359622042,0.2,141.02,140.99,22.6512]
[1763359622244,2.68784565,141.02,140.96,21.175888]
[1763359622450,1.80784565,141.0,140.95,1.80784565]
[1763359622651,105.58,141.01,140.93,1.80784565]
[1763359622652,1.80784565,140.98,140.93,1.80784565]
[1763359622856,1.80784565,140.97,140.92,1.80784565]
[1763359623163,0.68,140.96,140.92,1.80784565]
[1763359623353,0.68,140.96,140.93,2.52784565]
[1763359623550,0.68,140.96,140.93,1.80784565]
[1763359623956,0.68,140.96,140.93,2.52784565]
[1763359627259,0.68,140.96,140.93,1.80784565]
[1763359627639,0.68,140.96,140.93,2.52784565]
[1763359628643,0.68,140.96,140.9,26.359495]
[1763359628977,1.80784565,140.93,140.88,1.80784565]